Workbook

Sheet Read Me
B2: Read Me Sheet
B4: Toolbox on Solar Powered Irrigation Systems (SPIS)
C10: Introduction
B11: DESIGN – Farm Analysis Tool
B12: This tool allows for assessment on farm productivity and profitability through ist average annual agricultural production. The tool is useful for establishing a baseline or to assess the impact of planned investments
B13: This tool allows an SPIS advisor (supplier, development practisioner, extension officer) to support a farm enterprise towards identify unnecessary costs, determine best value agricultural activities and correctly monetise differt farm inputs.
C15: Overview
B17: This tool comprises the following sheets:
C18: 1. General Information | F18: on the farm identity, location and area
C19: 2. Equipment & Assets | F19: currently available on the farm or considered for future purchase
C20: 3. Fixed Costs & Financing | F20: that comprises fixed regular expenditures
C21: 4. Other Income | F21: additional income not directly related to crop or livestock production such as sale of water or rental out of equipment
C23: 5. Seasonal Crops | F23: to add current or projected sales of seasonal crops (e.g. rice, vegetables, fodder) and by-products and the related variable expenditures
C25: 6. Perennial Crops | F25: to add current or projected sales of perennial crops (e.g. fruit trees) and by-products and the related variable expenditures
C27: 7. Livestock | F27: to add current or projected sales of livestock, poultry and by-products and the related variable expenditures
C29: 8. Farm Income Statement | F29: No Entry! Summary calculation on gross profitability of the farm enterprise
C31: Tips & Tricks
B32: Sample values are included in the tool for illustration only, please remove and/or adjust as required.
B33: This tool contains numerous critical formulas or calculations.
B34: Only add data into white (non-coloured) cells!
B35: This tool provides an indicative assessment of farm profitability, and should be complemented by deeper and more detailed assessments, market analysis and other due diligence, before committing to large-scale investments.
C37: About
C38: Published by: GIZ & FAO
C39: Responsible: GIZ project Sustainable Energy for Food - Powering Agriculture
C40: Contact: Powering.Agriculture@giz.de
C41: Download link: https://energypedia.info/wiki/Toolbox_on_SPIS
C42: About: Powering Agriculture: An Energy Grand Challenge for Development: https://poweringag.org
C43: Version: 0.2 (October 2017)
C45: The Toolbox on Solar Powered Irrigation Systems is made possible through the global initiative Powering Agriculture: An Energy Grand Challenge for Development (PAEGC). In 2012, the United States Agency for International Development (USAID), the Swedish International Development Cooperation Agency (Sida), the German Federal Ministry for Economic Cooperation and Development (BMZ), Duke Energy, and the Overseas Private Investment Cooperation (OPIC) combined resources to create the PAEGC initiative. The objective of PAEGC is to support new and sustainable approaches to accelerate the development and deployment of clean energy solutions for increasing agriculture productivity and/or value for farmers and agribusinesses in developing countries and emerging regions that lack access to reliable, affordable clean energy.
C55: The designations employed and the presentation of material in this information product do not imply the expression of any opinion whatsoever on the part of the Food and Agriculture Organizations of the United Nations (FAO), Deutsche Gesellschaft für Internationale Zusammenarbeit (GIZ) GmbH or any of the PAEGC Founding Partners concerning the legal or development status of any country, territory, city or area or of its authorities, or concerning the delimitation of its frontiers or boundaries. The mention of specific companies or products of manufacturers, whether or not these have been patented, does not imply that these have been endorsed or recommended by FAO, GIZ, or any of the PAEGC Founding Partners in preference to others of a similar nature that are not mentioned. The views expressed in this information product are those of the author and do not necessarily reflect the views or policies of FAO, GIZ, or any of the PAEGC Founding Partners.
C66: FAO, GIZ and the PAEGC Founding Partners encourage the use, reproduction and dissemination of material in this information product. Except where otherwise indicated, material may be copied, downloaded and printed for private study, research and teaching purposes, or for use in non-commercial products or services, provided that appropriate acknowledgement of FAO and GIZ as the source and copyright holder is given.
C72: © GIZ and FAO, 2017

Sheet 1 General Information
A1: DESIGN – Farm Analysis Tool
B2: 1 GENERAL FARM INFORMATION
B5: Country | C5: Namibia | G5: Region | H5: Karas
B6: Farm code | G6: Date | H6: 2017-11-14
B8: Name of the farm
B9: Village
B10: Division
B11: District
B12: Interviewer
B13: Agricultural campaign | D13: 2019 | E13: 2020 | F13: ( four digits each ! )
B14: Currency used for calculation | D14: €
B15: Area measurement unit | D15: acre | I15: Conversion factor to 1 ha : | J15: 2.5
B16: Weight measurement unit | D16: kg | I16: Conversion factor to 1 kg : | J16: 1
B19: LAND RESOURCES
B21: Property status | D21: Area
B22: + Land owned | E22: 10 | F22: =+$D$15 -> acre | G22: = | I22: =+E22/$J$15 -> 4 | J22: ha
B23: + Part of co-operative land | F23: acre | G23: = | I23: =+E23/$J$15 -> 0 | J23: ha
B24: + Land exploited as sharegrower (partner possesses) | F24: acre | G24: = | I24: 0 | J24: ha
B25: + Land leased in | E25: 2 | F25: acre | G25: = | I25: 0.8 | J25: ha
B26: - Land leased out | E26: 2 | F26: acre | G26: = | I26: 0.8 | J26: ha
B27: + Land in possession of other sources | F27: acre | G27: = | I27: 0 | J27: ha
D28: Total | E28: =+SUM(E22:E25)-E26+E27 -> 10 | F28: acre | G28: = | I28: 4 | J28: ha
B30: Access to communal grazing lands | D30: Yes | H30: No
B32: Land classification | D32: Area | E32: rain fed | F32: irrigated | I32: Total area
B33: Seasonal crop land | E33: 2 | F33: 6 | G33: =+$D$15 -> acre | H33: = | I33: =(+E33+F33)/$J$15 -> 3.2 | J33: ha
B34: Perennials (with & without option of intercropping) | G34: acre | H34: = | I34: =(+E34+F34)/$J$15 -> 0 | J34: ha
B35: Greenhouses | G35: acre | H35: = | I35: =(+E35+F35)/$J$15 -> 0 | J35: ha
B36: Pastures (grazing land) | G36: acre | H36: = | I36: =(+E36+F36)/$J$15 -> 0 | J36: ha
B37: Fallow land | E37: 2 | G37: acre | H37: = | I37: =(+E37+F37)/$J$15 -> 0.8 | J37: ha
D38: Total agricultural / horticultural land | E38: =+SUM(E33:E37) -> 4 | F38: =+SUM(F33:F37) -> 6 | G38: acre | H38: = | I38: =IF((+$I$33+$I$34+$I$35+$I$36+$I$37)=I28,+$I$33+$I$34+$I$35+$I$36+$I$37,"CHECK !") -> 4 | J38: ha
B40: Afforested area | F40: =+$D$15 -> acre | G40: = | I40: =+E40/$J$15 -> 0 | J40: ha
B41: Long term fallow ( >3 years ) | F41: =+$D$15 -> acre | G41: = | I41: =+E41/$J$15 -> 0 | J41: ha
D42: Total non-agricultural land | E42: =+E41+E40 -> 0 | F42: =+$D$15 -> acre | G42: = | I42: =+E42/$J$15 -> 0 | J42: ha

Sheet 2 Equipment & Assets
A1: DESIGN – Farm Analysis Tool
B2: 2 EQUIPMENT & ASSETS
B4: Annual inflation rate | C4: 0.054 | F4: Farm code | G4: ='1 General Information'!C6 -> 0
B6: Type (Position the mouse on "Type" to get suggestions) | E6: Today's value of equivalent replacement | F6: Age | G6: Normal life span | H6: Annual depreciation for replacement
E10: ='1 General Information'!D14 -> € | F10: years | G10: years | H10: ='1 General Information'!D14 -> €
B11: Sprayer | E11: 10000 | F11: 4 | G11: 7 | H11: =IF(G11=0,0,+IF((+G11-F11)<0,"amorti ",(E11*((1+$C$4)^(G11-F11)))/G11)) -> 1672.722091 | I11: Indicative normal life span: | J11: Please select
B12: Well / borehole | E12: 70000 | F12: 10 | G12: 20 | H12: =IF(G12=0,0,+IF((+G12-F12)<0,"amorti ",(E12*((1+$C$4)^(G12-F12)))/G12)) -> 5922.078408 | J12: Baler
B13: Livestock shed / stable | H13: 0 | I13: Livestock shed - 20 years | J13: Cereal harvester
B14: Please select | H14: 0 | I14: Garage / Workshop - 20 year | J14: Cultivator / tiller
B15: Please select | H15: 0 | I15: Storage / warehouse - 20 years | J15: Fertilizer distributor
B16: Please select | H16: 0 | I16: Other building - 20 years | J16: Glashouse equipement
B17: Please select | H17: 0 | I17: Well / borehole - 20 years | J17: Grass cutter
B18: Please select | H18: 0 | I18: Ox cart - 7 years | J18: Irrigation material
B19: Please select | H19: 0 | I19: Truck / car - 10 years | J19: Livestock shed / stable
B20: Please select | H20: 0 | I20: Tractor - 10 years | J20: Other buildings
B21: Please select | H21: 0 | I21: Plough - 7 years | J21: Ox cart
B22: Please select | H22: 0 | I22: Cultivator / tiller - 7 years | J22: Plough
B23: Please select | H23: 0 | I23: Sowing machine - 7 years | J23: PV generator
B24: Please select | H24: 0 | I24: Fertilizer distributor - 7 years | J24: Sowing machine
B25: Please select | H25: 0 | I25: Sprayer - 7 years | J25: Sprayer
B26: Please select | H26: 0 | I26: Grass cutter - 7 years | J26: Storage / warehouse
B27: Please select | H27: 0 | I27: Baler - 7 years | J27: Tractor / car
B28: Please select | H28: 0 | I28: Cereal harvester - 10 years | J28: Water pump
H29: 0 | I29: Irrigation material - 5 years | J29: Well / borehole
H30: 0 | I30: Water pump - 7 years | J30: Workshop / garage
H31: 0 | I31: PV generator - 20 years
H32: 0 | I32: Glasshouse equipment - 10 years
H33: 0
H34: 0
H35: 0
H36: 0
B38: TOTAL ANNUAL DEPRECIATION needed for replacement | G38: ='1 General Information'!D14 -> € | H38: =+SUM(H11:H36) -> 7594.800499

Sheet 3 Costs & Financing
A1: DESIGN – Farm Analysis Tool
B2: 4 COSTS (FIXED and VARIABLE)
L4: Farm code | M4: ='1 General Information'!C6 -> 0
B6: Month | C6: January | D6: February | E6: March | F6: April | G6: May | H6: June | I6: July | J6: August | K6: September | L6: October | M6: November | N6: December | O6: Total
B7: Type of FIXED COSTS | C7: 1 | D7: 2 | E7: 3 | F7: 4 | G7: 5 | H7: 6 | I7: 7 | J7: 8 | K7: 9 | L7: 10 | M7: 11 | N7: 12
B8: Membership fees | O8: =+SUM(C8:N8) -> 0
B9: Insurance costs | O9: =+SUM(C9:N9) -> 0
B10: Land tax | O10: 0
B11: Social fund contribution | O11: 0
B12: Leasing fees for equipment | O12: 0
B13: Rental costs for land | O13: =+SUM(C13:N13) -> 0
B14: Other fixed costs | O14: 0
B15: TOTAL FIXED COSTS per month | C15: =+SUM(C8:C14) -> 0 | D15: 0 | E15: 0 | F15: 0 | G15: 0 | H15: 0 | I15: 0 | J15: 0 | K15: 0 | L15: 0 | M15: 0 | N15: 0 | O15: 0
B16: Month | C16: January | D16: February | E16: March | F16: April | G16: May | H16: June | I16: July | J16: August | K16: September | L16: October | M16: November | N16: December | O16: Total
B17: Type of VARIABLE COSTS | C17: 1 | D17: 2 | E17: 3 | F17: 4 | G17: 5 | H17: 6 | I17: 7 | J17: 8 | K17: 9 | L17: 10 | M17: 11 | N17: 12
B18: Maintenance & repair | C18: 70 | D18: 70 | E18: 70 | F18: 70 | G18: 70 | H18: 70 | I18: 70 | J18: 70 | K18: 70 | L18: 70 | M18: 70 | N18: 70 | O18: 840
B19: General fuel & lubricants | C19: 70 | D19: 70 | E19: 70 | F19: 70 | G19: 70 | H19: 70 | I19: 70 | J19: 70 | K19: 70 | L19: 70 | M19: 70 | N19: 70 | O19: 840
B20: Water, electricity, gas supply | C20: 70 | D20: 70 | E20: 70 | F20: 70 | G20: 70 | H20: 70 | I20: 70 | J20: 70 | K20: 70 | L20: 70 | M20: 70 | N20: 70 | O20: 840
B21: Regular transport fees | C21: 70 | D21: 70 | E21: 70 | F21: 70 | G21: 70 | H21: 70 | I21: 70 | J21: 70 | K21: 70 | L21: 70 | M21: 70 | N21: 70 | O21: 840
B22: Regular staff salary costs | C22: 70 | D22: 70 | E22: 70 | F22: 70 | G22: 70 | H22: 70 | I22: 70 | J22: 70 | K22: 70 | L22: 70 | M22: 70 | N22: 70 | O22: 840
B23: Other variable costs | C23: 70 | D23: 70 | E23: 70 | F23: 70 | G23: 70 | H23: 70 | I23: 70 | J23: 70 | K23: 70 | L23: 70 | M23: 70 | N23: 70 | O23: =+SUM(C23:N23) -> 840
B24: TOTAL VARIABLE COSTS per month | C24: =+SUM(C18:C23) -> 420 | D24: 420 | E24: 420 | F24: 420 | G24: 420 | H24: 420 | I24: 420 | J24: 420 | K24: 420 | L24: 420 | M24: 420 | N24: 420 | O24: 5040
B25: CREDIT AND FINANCING (simplified calculator, to be confirmed with loan provider)
J26: Enter manually:
B27: Bank name | C27: Loan amount | D27: Credit period (years) | E27: Month of taking credit | F27: Year of taking credit | G27: Annual interest rate | H27: Monthly loan repayment | K27: Note: the calculator value will take precedence to the manual value. Ensure calculator value is 0 in order to use manual value.
I28: OR
B30: Test Bank | C30: 20000 | D30: 3 | E30: 1 | F30: 2017 | G30: 0.15 | H30: =IF(E30,-PMT(G30/12,D30*12,C30),"0") -> 693.3065701 | J30: 345
H31: =IF(E31,-PMT(G31/12,D31*12,C31),"0") -> 0
H32: =IF(E32,-PMT(G32/12,D32*12,C32),"0") -> 0
H33: 0
H34: 0
H35: 0
H36: 0
B37: TOTAL CREDIT | C37: =SUM(C30:C36) -> 20000 | H37: =SUM(H30:H36) -> 693.3065701 | J37: =SUM(J30:J36) -> 345

Sheet 4 Other Income
A1: DESIGN – Farm Analysis Tool
B2: 4 OTHER INCOME
L4: Farm code | M4: ='1 General Information'!C6 -> 0
B6: Month | C6: January | D6: February | E6: March | F6: April | G6: May | H6: June | I6: July | J6: August | K6: September | L6: October | M6: November | N6: December | O6: Total
B7: Type of OTHER INCOME | C7: 1 | D7: 2 | E7: 3 | F7: 4 | G7: 5 | H7: 6 | I7: 7 | J7: 8 | K7: 9 | L7: 10 | M7: 11 | N7: 12
B8: Sale of water | O8: =+SUM(C8:N8) -> 0
B9: Hire out of equipment | O9: =+SUM(C9:N9) -> 0
B10: Lease out storage space | O10: 0
B11: Lease out land | O11: 0
B12: Lease out labour | O12: 0
O13: =+SUM(C13:N13) -> 0
O14: 0
B15: TOTAL OTHER INCOME per month | C15: =+SUM(C8:C14) -> 0 | D15: 0 | E15: 0 | F15: 0 | G15: 0 | H15: 0 | I15: 0 | J15: 0 | K15: 0 | L15: 0 | M15: 0 | N15: 0 | O15: 0

Sheet 5 Seasonal Crops
A1: DESIGN – Farm Analysis Tool
B2: 4 SEASONAL CROP GROSS PROFIT CALCULATION
E4: Farm code | F4: ='1 General Information'!C6 -> 0
B6: Agricultural land used: | C6: =SUM(C10:C14) -> 4 | D6: ='1 General Information'!D15 -> acre
D7: Unit | E7: Quantity | F7: Unit Price | G7: Value
B8: Sales
B9: Crop types: | C9: Area:
B10: rice | C10: 1 | D10: kg | E10: 1400 | F10: 500 | G10: =+F10*E10*C10 -> 700000
B11: potatoes | C11: 1 | D11: kg | E11: 1400 | F11: 500 | G11: =+F11*E11*C11 -> 700000
B12: maize | C12: 1 | D12: kg | E12: 1000 | F12: 500 | G12: 500000
B13: fodder | C13: 1 | D13: kg | E13: 1400 | F13: 500 | G13: 700000
D14: kg | E14: 1400 | F14: 500 | G14: 0
B15: By-products:
B16: Compost | D16: bags | E16: 500 | F16: 120 | G16: =+F16*E16 -> 60000
B17: Hay | D17: bale | E17: 500 | F17: 120 | G17: 60000
G18: 0
B19: GROSS PRODUCT | G19: =SUM(G10:G18) -> 2720000
B20: Variable Costs
B21: Seeds
B22: Local seeds | D22: kg | E22: 100 | G22: =+F22*E22 -> 0
B23: Certified seeds | D23: kg | E23: 80 | F23: 40 | G23: =+F23*E23 -> 3200
C24: Sub-Total | G24: =+G23+G22 -> 3200
B25: Manure & Fertiliser
B26: Manure | D26: kg | E26: 300 | F26: 50 | G26: =+F26*E26 -> 15000
B27: N | D27: kg | E27: 120 | F27: 250 | G27: =+F27*E27 -> 30000
B28: P | D28: kg | E28: 80 | F28: 380 | G28: =+F28*E28 -> 30400
B29: K | D29: kg | E29: 50 | F29: 90 | G29: =+F29*E29 -> 4500
C30: Sub-Total | G30: =+SUM(G26:G29) -> 79900
B31: Plant Protection
B32: Herbicides | D32: kg or litres | E32: 10 | F32: 1300 | G32: =+F32*E32 -> 13000
B33: Insecticides | D33: kg or litres | G33: =+F33*E33 -> 0
B34: Fungicides | D34: kg or litres | G34: =+F34*E34 -> 0
B35: Others | D35: kg or litres | G35: =+F35*E35 -> 0
C36: Sub-Total | G36: =+SUM(G32:G35) -> 13000
B37: Labour (family, permanent staff and temporary staff)
B38: Labour type | C38: Number of labour type:
B39: Family member | C39: 1 | D39: months | E39: 12 | F39: 200 | G39: =+F39*E39*C39 -> 2400 | I39: Family member | J39: days
B40: Family member | C40: 2 | D40: months | E40: 8 | F40: 200 | G40: =+F40*E40*C40 -> 3200 | I40: Permanent staff | J40: months
B41: Family member | D41: months | G41: =+F41*E41*C41 -> 0 | I41: Temporary staff | J41: years
B42: Family member | D42: months | G42: =+F42*E42*C42 -> 0
B43: Family member | C43: 1 | D43: months | E43: 12 | F43: 250 | G43: 3000
C44: Sub-Total | G44: =+SUM(G39:G43) -> 8600
B45: Traction and Mechanisation (own equipment and hired services)
B46: Ploughing / tillage | D46: days | E46: 4 | F46: 800 | G46: =+F46*E46 -> 3200
B47: Transport | D47: trips | E47: 4 | F47: 1200 | G47: 4800
G48: 0
G49: 0
G50: 0
C51: Sub-Total | G51: =+SUM(G46:G50) -> 8000
B52: Infrastructure (maintenance and expansion)
B53: Fence repairs | E53: 4 | F53: 800 | G53: =+F53*E53 -> 3200
B54: Irrigation system repair | E54: 3 | F54: 1200 | G54: 3600
B55: New greenhouse | G55: 0
G56: 0
G57: 0
C58: Sub-Total | G58: =+SUM(G53:G57) -> 6800
B59: Irrigation
B60: Water fees | E60: 1 | F60: 400 | G60: =+F60*E60 -> 400
B61: Fuel / energie | E61: 1 | F61: 5000 | G61: =+F61*E61 -> 5000
C62: Sub-Total | G62: =+G61+G60 -> 5400
B63: Other costs
B64: Post-harvest operations | D64: ='1 General Information'!$D$14 -> € | G64: =E64*F64 -> 0
B65: Packaging materials | D65: ='1 General Information'!$D$14 -> € | G65: =E65*F65 -> 0
B66: Processing | D66: ='1 General Information'!$D$14 -> € | G66: 0
B67: Processing | D67: ='1 General Information'!$D$14 -> € | G67: 0
B68: Marketing | D68: ='1 General Information'!$D$14 -> € | E68: 2 | F68: 700 | G68: 1400
C69: Sub-Total | G69: =SUM(G64:G68) -> 1400
B71: TOTAL VARIABLE COSTS | G71: =+G69+G62+G58+G44+G36+G30+G24+G51 -> 126300
B73: GROSS PROFIT | G73: =+G19-G71 -> 2593700

Sheet 6 Perennial Crops
A1: DESIGN – Farm Analysis Tool
B2: 5 PERENNIAL CROP GROSS PROFIT CALCULATION
E4: Farm code | F4: ='1 General Information'!C6 -> 0
B6: Agricultural land used: | C6: =SUM(C10:C14) -> 4 | D6: ='1 General Information'!D15 -> acre
D7: Unit | E7: Quantity | F7: Unit Price | G7: Value
B8: Sales
B9: Crop types: | C9: Area:
B10: date palm | C10: 1 | D10: kg | E10: 1400 | F10: 500 | G10: =+F10*E10*C10 -> 700000
B11: pomegranat | C11: 1 | D11: kg | E11: 1400 | F11: 500 | G11: =+F11*E11*C11 -> 700000
B12: citrus | C12: 2 | D12: kg | E12: 1000 | F12: 500 | G12: 1000000
D13: kg | F13: 500 | G13: 0
D14: kg | F14: 500 | G14: 0
B15: By-products:
B16: Compost | D16: bags | E16: 500 | F16: 120 | G16: =+F16*E16 -> 60000
B17: Wood | D17: bundles | E17: 500 | F17: 120 | G17: =+F17*E17 -> 60000
G18: 0
B19: GROSS PRODUCT | G19: =SUM(G10:G18) -> 2520000
B20: Variable Costs
B21: Seedlings
B22: Local Seedlings | D22: no. | G22: =+F22*E22 -> 0
B23: Nursery Seedlings | D23: no. | E23: 80 | F23: 400 | G23: =+F23*E23 -> 32000
B24: Other establishment cost (juvenile phase) | D24: ='1 General Information'!D20 -> 0 | G24: =F24 -> 0
B25: Duration of juvenile phase | D25: years | E25: 3 | G25: =SUM(G22:G24) -> 32000
C26: Sub-Total | G26: =IF(+G25=0,0,(+G23+G22+G24)/E25) -> 10666.66667
B27: Manure & Fertiliser
B28: Manure | D28: kg | E28: 300 | F28: 50 | G28: =+F28*E28 -> 15000
B29: N | D29: kg | E29: 120 | F29: 250 | G29: =+F29*E29 -> 30000
B30: P | D30: kg | E30: 80 | F30: 380 | G30: =+F30*E30 -> 30400
B31: K | D31: kg | E31: 50 | F31: 20 | G31: =+F31*E31 -> 1000
C32: Sub-Total | G32: =+SUM(G28:G31) -> 76400
B33: Plant Protection
B34: Herbicides | D34: kg or litres | E34: 10 | F34: 1300 | G34: =+F34*E34 -> 13000
B35: Insecticides | D35: kg or litres | E35: 19 | F35: 1000 | G35: =+F35*E35 -> 19000
B36: Fungicides | D36: kg or litres | G36: =+F36*E36 -> 0
B37: Others | D37: kg or litres | G37: =+F37*E37 -> 0
C38: Sub-Total | G38: =+SUM(G34:G37) -> 32000
B39: Labour (family, permanent staff and temporary staff)
B40: Labour type | C40: Number of labour type:
B41: Family member | C41: 1 | D41: months | E41: 12 | F41: 200 | G41: =+F41*E41*C41 -> 2400 | I41: Family member | J41: days
B42: Family member | C42: 2 | D42: months | E42: 8 | F42: 200 | G42: =+F42*E42*C42 -> 3200 | I42: Permanent staff | J42: months
B43: Family member | D43: months | G43: =+F43*E43*C43 -> 0 | I43: Temporary staff | J43: years
B44: Family member | D44: months | G44: =+F44*E44*C44 -> 0
B45: Family member | C45: 1 | D45: months | E45: 12 | F45: 250 | G45: =+F45*E45*C45 -> 3000
C46: Sub-Total | G46: =+SUM(G41:G45) -> 8600
B47: Traction and Mechanisation (own equipment and hired services)
B48: Ploughing / tillage | D48: days | E48: 4 | F48: 800 | G48: =+F48*E48 -> 3200
B49: Transport | D49: trips | E49: 1 | F49: 1200 | G49: 1200
G50: 0
G51: 0
G52: 0
C53: Sub-Total | G53: =+SUM(G48:G52) -> 4400
B54: Infrastructure (maintenance and expansion)
B55: Fence repairs | E55: 4 | F55: 800 | G55: =+F55*E55 -> 3200
B56: Irrigation system repair | E56: 3 | F56: 1200 | G56: 3600
G57: 0
G58: 0
G59: 0
C60: Sub-Total | G60: =+SUM(G55:G59) -> 6800
B61: Irrigation
B62: Water fees | E62: 1 | F62: 400 | G62: =+F62*E62 -> 400
B63: Fuel / energie | E63: 1 | F63: 5000 | G63: =+F63*E63 -> 5000
C64: Sub-Total | G64: =+G63+G62 -> 5400
B65: Other costs
B66: Post-harvest operations | D66: ='1 General Information'!$D$14 -> € | G66: =E66*F66 -> 0
B67: Packaging materials | D67: ='1 General Information'!$D$14 -> € | G67: =E67*F67 -> 0
B68: Processing | D68: ='1 General Information'!$D$14 -> € | G68: 0
B69: Processing | D69: ='1 General Information'!$D$14 -> € | G69: 0
B70: Marketing | D70: ='1 General Information'!$D$14 -> € | E70: 2 | F70: 700 | G70: 1400
C71: Sub-Total | G71: =SUM(G66:G70) -> 1400
B73: TOTAL VARIABLE COSTS | G73: =+G71+G64+G60+G46+G38+G32+G26+G53 -> 145666.6667
B75: GROSS PROFIT | G75: =+G19-G73 -> 2374333.333

Sheet 7 Livestock
A1: DESIGN – Farm Analysis Tool
B2: 6 LIVESTOCK GROSS PROFIT CALCULATION
E4: Farm code | F4: ='1 General Information'!C6 -> 0
B6: Livestock sold: | C6: =SUM(E10:E23) -> 10 | D6: head
D7: Unit | E7: Quantity | F7: Unit Price | G7: Value
B8: Sales
B9: Livestock type
B10: Dairy cows | D10: head | E10: 10 | F10: 500 | G10: =+F10*E10 -> 5000
B11: Heifers | D11: head | G11: =+F11*E11 -> 0
B12: Adult steers | D12: head | G12: 0
B13: Juvenile steers | D13: head | G13: 0
B14: Calfs | D14: head | G14: 0
B15: Sheep does | D15: head | G15: 0
B16: Sheep bucks | D16: head | G16: 0
B17: Sheep kids | D17: head | G17: 0
B18: Goat does | D18: head | G18: 0
B19: Goat bucks | D19: head | G19: 0
B20: Goat kids | D20: head | G20: 0
B21: Chickens | D21: head | G21: 0
G22: 0
G23: 0
B24: By-products:
B25: Milk | D25: litres | E25: 500 | F25: 120 | G25: =+F25*E25 -> 60000
B26: Eggs | E26: 500 | F26: 120 | G26: =+F26*E26 -> 60000
B27: Skins | G27: =+F27*E27 -> 0
B28: Manure | G28: =+F28*E28 -> 0
G29: 0
B30: GROSS PRODUCT | G30: =SUM(G10:G29) -> 125000
B31: Fodder & Fodder Concentrates
B32: Regular base fodder | D32: kg | G32: =+F32*E32 -> 0
B33: Special fodder | D33: kg | E33: 80 | F33: 400 | G33: =+F33*E33 -> 32000
B34: Composed concentrates | G34: 0
B35: Husks | G35: 0
B36: Sunflower oil cakes | G36: 0
B37: Grains | G37: 0
B38: Milk powder | E38: 3 | G38: 0
C39: Sub-Total | G39: =SUM(G32:G38) -> 32000
B40: Veterinary Services
B41: Vaccination | D41: ='1 General Information'!$D$14 -> € | G41: =+F41*E41 -> 0
B42: Inspections | D42: ='1 General Information'!$D$14 -> € | G42: =+F42*E42 -> 0
D43: ='1 General Information'!$D$14 -> € | G43: =+F43*E43 -> 0
D44: ='1 General Information'!$D$14 -> € | G44: =+F44*E44 -> 0
C45: Sub-Total | G45: =+SUM(G41:G44) -> 0
B46: Labour (family, permanent staff and temporary staff)
B47: Labour type | C47: Number of labour type:
B48: Family member | C48: 1 | D48: months | E48: 12 | F48: 200 | G48: =+F48*E48*C48 -> 2400 | I48: Family member | J48: days
B49: Family member | C49: 2 | D49: months | E49: 8 | F49: 200 | G49: =+F49*E49*C49 -> 3200 | I49: Permanent staff | J49: months
B50: Family member | D50: months | G50: =+F50*E50*C50 -> 0 | I50: Temporary staff | J50: years
B51: Family member | D51: months | G51: =+F51*E51*C51 -> 0
B52: Family member | C52: 1 | D52: months | E52: 12 | F52: 250 | G52: =+F52*E52*C52 -> 3000
C53: Sub-Total | G53: =+SUM(G48:G52) -> 8600
B54: Traction and Mechanisation (own equipment and hired services)
B55: Ploughing / tillage | D55: days | E55: 4 | F55: 800 | G55: =+F55*E55 -> 3200
B56: Transport | D56: trips | E56: 3 | F56: 1200 | G56: 3600
G57: 0
G58: 0
G59: 0
C60: Sub-Total | G60: =+SUM(G55:G59) -> 6800
B61: Infrastructure (maintenance and expansion)
B62: Fence repair | D62: ='1 General Information'!$D$14 -> € | E62: 4 | F62: 800 | G62: =+F62*E62 -> 3200
B63: New shed | D63: ='1 General Information'!$D$14 -> € | E63: 1 | F63: 30000 | G63: 30000
D64: ='1 General Information'!$D$14 -> € | G64: 0
D65: ='1 General Information'!$D$14 -> € | G65: 0
D66: ='1 General Information'!$D$14 -> € | G66: 0
C67: Sub-Total | G67: =+SUM(G62:G66) -> 33200
B68: Water supply
B69: Water fees | E69: 1 | F69: 400 | G69: =+F69*E69 -> 400
B70: Fuel / energie | E70: 1 | F70: 5000 | G70: =+F70*E70 -> 5000
C71: Sub-Total | G71: =+G70+G69 -> 5400
B72: Other costs
B73: Cooling services | D73: ='1 General Information'!$D$14 -> € | G73: =E73*F73 -> 0
B74: Abattoir services | D74: ='1 General Information'!$D$14 -> € | G74: =E74*F74 -> 0
B75: Packaging materials | D75: ='1 General Information'!$D$14 -> € | G75: 0
B76: Pasture leasing | D76: ='1 General Information'!$D$14 -> € | G76: 0
B77: Processing | D77: ='1 General Information'!$D$14 -> € | G77: 0
B78: Marketing | D78: ='1 General Information'!$D$14 -> € | G78: 0
D79: ='1 General Information'!$D$14 -> € | E79: 2 | F79: 700 | G79: =E79*F79 -> 1400
C80: Sub-Total | G80: =SUM(G73:G79) -> 1400
B82: TOTAL VARIABLE COSTS | G82: =+G80+G71+G67+G53+G60+G45+G39 -> 87400
B84: GROSS PROFIT | G84: =+G30-G82 -> 37600

Sheet 8 Farm Income Statement
A1: DESIGN – Farm Analysis Tool
B2: 8 FARM INCOME STATEMENT
F4: Farm code | G4: ='1 General Information'!C6 -> 0
C6: + | D6: Gross value of seasonal crop production | E6: =Calculation!D9 -> 2600000 | F6: ='1 General Information'!$D$14 -> € | G6: + | H6: =IF($E$14=0,0,(+E6/$E$14)*(1-$E$13)) -> 0.4846225536
C7: + | D7: Gross value of seasonal crop by-product production | E7: =Calculation!E9 -> 120000 | F7: ='1 General Information'!$D$14 -> € | G7: + | H7: =IF($E$14=0,0,(+E7/$E$14)*(1-$E$13)) -> 0.02236719478
C8: + | D8: Gross value of perennial crop production | E8: =Calculation!D10 -> 2400000 | F8: ='1 General Information'!$D$14 -> € | G8: + | H8: 0.4473438956
C9: + | D9: Gross value of perennial crop by-product production | E9: =Calculation!E10 -> 120000 | F9: ='1 General Information'!$D$14 -> € | G9: + | H9: 0.02236719478
C10: + | D10: Gross value of livestock production: | E10: =Calculation!D11 -> 5000 | F10: ='1 General Information'!$D$14 -> € | G10: + | H10: 0.0009319664492
C11: + | D11: Gross value of livestock by-product production: | E11: =Calculation!E11 -> 120000 | F11: ='1 General Information'!$D$14 -> € | G11: + | H11: 0.02236719478
C12: + | D12: Gross value of other income: | E12: ='4 Other Income'!O15 -> 0 | F12: ='1 General Information'!$D$14 -> € | G12: + | H12: 0
C13: - | D13: Anticipated losses of total sales | E13: 0.1 | F13: %
C14: = | D14: GROSS FARM INCOME | E14: =SUM(E6:E12)-(SUM(E6:E12)*E13) -> 4828500 | F14: ='1 General Information'!$D$14 -> € | G14: = | H14: =SUM(H6:H12) -> 1
C17: - | D17: Total fixed costs | E17: ='3 Costs & Financing'!O15+('3 Costs & Financing'!H37*12) -> 8319.678841 | F17: ='1 General Information'!$D$14 -> € | G17: + | H17: =IF($E$20=0,0,+E17/$E$20) -> 0.02187540432
C18: - | D18: Total variable costs (for regular expenses) | E18: ='3 Costs & Financing'!O24+'2 Equipment & Assets'!H38 -> 12634.8005 | F18: ='1 General Information'!$D$14 -> € | G18: + | H18: =IF($E$20=0,0,+E18/$E$20) -> 0.03322139889
C19: - | D19: Total variable costs for crop and livestock production | E19: =Calculation!Q12 -> 359366.6667 | F19: ='1 General Information'!$D$14 -> € | G19: + | H19: =IF($E$20=0,0,+E19/$E$20) -> 0.9449031968
C20: = | D20: TOTAL COST | E20: =SUM(E17:E19) -> 380321.146 | F20: ='1 General Information'!$D$14 -> € | G20: = | H20: =SUM(H17:H19) -> 1
C56: = | D56: GROSS FARM PROFIT | E56: ="For period " & '1 General Information'!D13 -> For period 2019 | F56: ="to " & '1 General Information'!E13 -> to 2020 | G56: =E14-E20 -> 4448178.854 | H56: ='1 General Information'!$D$14 -> €
D57: Farm Profit Margin | G57: =(E14-E20)/E14 -> 0.9212341004
D59: average profit per ha of seasonal crops | G59: =Calculation!R9/Calculation!C9 -> 648425 | H59: ='1 General Information'!$D$14 -> €
D60: average profit per ha of perennial crops | G60: =Calculation!R10/Calculation!C10 -> 593583.3333 | H60: ='1 General Information'!$D$14 -> €
D61: average profit per head of livestock | G61: =Calculation!R11/Calculation!C11 -> 3760 | H61: ='1 General Information'!$D$14 -> €
D62: total crop area under cultivation | G62: =Calculation!C9+Calculation!C10 -> 8 | H62: ='1 General Information'!D15 -> acre

Sheet Crop Price Calculation Sheet
A1: Supplementary sheet for calculating average annual costs for selected crops and livestock based on seasonal monthly variations
B2: January | C2: February | D2: March | E2: April | F2: May | G2: June | H2: July | I2: August | J2: September | K2: October | L2: November | M2: December | N2: AVERAGE
B3: Unit price | C3: Unit price | D3: Unit price | E3: Unit price | F3: Unit price | G3: Unit price | H3: Unit price | I3: Unit price | J3: Unit price | K3: Unit price | L3: Unit price | M3: Unit price | N3: Unit price
A4: Seasonal Crops
A5: ='5 Seasonal Crops'!B10 -> rice | N5: =AVERAGE(B5:M5) -> 
A6: ='5 Seasonal Crops'!B11 -> potatoes | N6: =AVERAGE(B6:M6) -> 
A7: ='5 Seasonal Crops'!B12 -> maize
A8: ='5 Seasonal Crops'!B13 -> fodder
A9: ='5 Seasonal Crops'!B14 -> 0
A10: ='5 Seasonal Crops'!B15 -> By-products:
A11: ='5 Seasonal Crops'!B16 -> Compost
A12: ='5 Seasonal Crops'!B17 -> Hay
A13: ='5 Seasonal Crops'!B18 -> 0
A14: Perennial crops
A15: ='6 Perennial Crops'!B10 -> date palm
A16: ='6 Perennial Crops'!B11 -> pomegranat
A17: ='6 Perennial Crops'!B12 -> citrus
A18: ='6 Perennial Crops'!B13 -> 0
A19: ='6 Perennial Crops'!B14 -> 0
A20: ='6 Perennial Crops'!B15 -> By-products:
A21: ='6 Perennial Crops'!B16 -> Compost
A22: ='6 Perennial Crops'!B17 -> Wood
A23: ='6 Perennial Crops'!B18 -> 0
A24: Livestock
A25: ='7 Livestock'!B10 -> Dairy cows
A26: ='7 Livestock'!B11 -> Heifers
A27: ='7 Livestock'!B12 -> Adult steers
A28: ='7 Livestock'!B13 -> Juvenile steers
A29: ='7 Livestock'!B14 -> Calfs
A30: ='7 Livestock'!B15 -> Sheep does
A31: ='7 Livestock'!B16 -> Sheep bucks
A32: ='7 Livestock'!B17 -> Sheep kids
A33: ='7 Livestock'!B18 -> Goat does
A34: ='7 Livestock'!B19 -> Goat bucks
A35: ='7 Livestock'!B20 -> Goat kids
A36: ='7 Livestock'!B21 -> Chickens
A37: ='7 Livestock'!B22 -> 0
A38: ='7 Livestock'!B23 -> 0
A39: ='7 Livestock'!B24 -> By-products:
A40: ='7 Livestock'!B25 -> Milk
A41: ='7 Livestock'!B26 -> Eggs
A42: ='7 Livestock'!B27 -> Skins
A43: ='7 Livestock'!B28 -> Manure
A44: ='7 Livestock'!B29 -> 0

Sheet Calculation (hidden)
B1: DESIGN – Farm Analysis Tool
B2: 7 SUMMARY OF GROSS MARGINS
B4: Farm code | C4: ='1 General Information'!C6 -> 0
B6: Farm Enterprise | C6: Area cultivated / Livestock sold | D6: Gross Main Product | E6: Gross By-product | F6: Gross Prodcut | G6: Seeds / Seedlings / Establishment | H6: Fodder / Fodder Concentrates | I6: Manure / Fertiliser | J6: Veterinary Services | K6: Plant Protection | L6: Labour | M6: Traction / Mechanisation | N6: Infrastructure | O6: Irrigation / Water supply | P6: Other Costs | Q6: Total Costs | R6: Revenue | S6: Share of enterprise at total GM
C7: ha / head | D7: ='1 General Information'!$D$14 -> € | E7: ='1 General Information'!$D$14 -> € | F7: ='1 General Information'!$D$14 -> € | G7: ='1 General Information'!$D$14 -> € | H7: ='1 General Information'!$D$14 -> € | I7: ='1 General Information'!$D$14 -> € | J7: ='1 General Information'!$D$14 -> € | K7: ='1 General Information'!$D$14 -> € | L7: ='1 General Information'!$D$14 -> € | M7: ='1 General Information'!$D$14 -> € | N7: ='1 General Information'!$D$14 -> € | O7: ='1 General Information'!$D$14 -> € | P7: ='1 General Information'!$D$14 -> € | Q7: =M7 -> € | R7: =Q7 -> € | S7: %
D8: total | E8: total | F8: total | G8: total | H8: total | I8: total | J8: total | K8: total | L8: total | M8: total | N8: total | O8: total | P8: total | Q8: total | R8: per farm enterprise
B9: Seasonal crops | C9: ='5 Seasonal Crops'!C6 -> 4 | D9: =SUM('5 Seasonal Crops'!G10:G14) -> 2600000 | E9: =SUM('5 Seasonal Crops'!G16:G18) -> 120000 | F9: ='5 Seasonal Crops'!G19 -> 2720000 | G9: ='5 Seasonal Crops'!G24 -> 3200 | I9: ='5 Seasonal Crops'!G30 -> 79900 | K9: ='5 Seasonal Crops'!G36 -> 13000 | L9: ='5 Seasonal Crops'!G44 -> 8600 | M9: ='5 Seasonal Crops'!G51 -> 8000 | N9: ='5 Seasonal Crops'!G58 -> 6800 | O9: ='5 Seasonal Crops'!G62 -> 5400 | P9: ='5 Seasonal Crops'!G69 -> 1400 | Q9: ='5 Seasonal Crops'!G71 -> 126300 | R9: ='5 Seasonal Crops'!G73 -> 2593700 | S9: =IF($R$12=0,0,+R9/$R$12) -> 0.5181562107
B10: Perennial crops | C10: ='6 Perennial Crops'!C6 -> 4 | D10: =SUM('6 Perennial Crops'!G10:G14) -> 2400000 | E10: =SUM('6 Perennial Crops'!G16:G18) -> 120000 | F10: ='6 Perennial Crops'!G19 -> 2520000 | G10: ='6 Perennial Crops'!G26 -> 10666.66667 | I10: ='6 Perennial Crops'!G32 -> 76400 | K10: ='6 Perennial Crops'!G38 -> 32000 | L10: ='6 Perennial Crops'!G46 -> 8600 | M10: ='6 Perennial Crops'!G53 -> 4400 | N10: ='6 Perennial Crops'!G60 -> 6800 | O10: ='6 Perennial Crops'!G64 -> 5400 | P10: ='6 Perennial Crops'!G71 -> 1400 | Q10: ='6 Perennial Crops'!G73 -> 145666.6667 | R10: ='6 Perennial Crops'!G75 -> 2374333.333 | S10: =IF($R$12=0,0,+R10/$R$12) -> 0.4743322523
B11: Livestock | C11: ='7 Livestock'!C6 -> 10 | D11: =SUM('7 Livestock'!G10:G23) -> 5000 | E11: =SUM('7 Livestock'!G25:G29) -> 120000 | F11: ='7 Livestock'!G30 -> 125000 | H11: ='7 Livestock'!G39 -> 32000 | J11: ='7 Livestock'!G45 -> 0 | L11: ='7 Livestock'!G53 -> 8600 | N11: ='7 Livestock'!G67 -> 33200 | O11: ='7 Livestock'!G71 -> 5400 | P11: ='7 Livestock'!G80 -> 1400 | Q11: ='7 Livestock'!G82 -> 87400 | R11: ='7 Livestock'!G84 -> 37600 | S11: =IF($R$12=0,0,+R11/$R$12) -> 0.007511537002
B12: Sub-Total (for entire farm) | D12: =SUM(D9:D11) -> 5005000 | E12: =SUM(E9:E11) -> 360000 | F12: 5365000 | G12: 13866.66667 | H12: 32000 | I12: 156300 | J12: 0 | K12: 45000 | L12: 25800 | M12: 12400 | N12: 46800 | O12: 16200 | P12: 4200 | Q12: =SUM(Q9:Q11) -> 359366.6667 | R12: =SUM(R9:R11) -> 5005633.333 | S12: =SUM(S9:S11) -> 1
B15: Fixed and Variable Costs | C15: ='3 Costs & Financing'!B8 -> Membership fees | D15: ='3 Costs & Financing'!B9 -> Insurance costs | E15: ='3 Costs & Financing'!B10 -> Land tax | F15: ='3 Costs & Financing'!B11 -> Social fund contribution | G15: ='3 Costs & Financing'!B12 -> Leasing fees for equipment | H15: ='3 Costs & Financing'!B13 -> Rental costs for land | I15: Total annual loan repayments | J15: Total annual depreciation costs | K15: ='3 Costs & Financing'!B14 -> Other fixed costs | L15: ='3 Costs & Financing'!B18 -> Maintenance & repair | M15: ='3 Costs & Financing'!B19 -> General fuel & lubricants | N15: ='3 Costs & Financing'!B20 -> Water, electricity, gas supply | O15: ='3 Costs & Financing'!B21 -> Regular transport fees | P15: ='3 Costs & Financing'!B22 -> Regular staff salary costs | Q15: ='3 Costs & Financing'!B23 -> Other variable costs
C16: ='1 General Information'!$D$14 -> € | D16: ='1 General Information'!$D$14 -> € | E16: ='1 General Information'!$D$14 -> € | F16: ='1 General Information'!$D$14 -> € | G16: ='1 General Information'!$D$14 -> € | H16: ='1 General Information'!$D$14 -> € | I16: ='1 General Information'!$D$14 -> € | J16: ='1 General Information'!$D$14 -> € | K16: ='1 General Information'!$D$14 -> € | L16: ='1 General Information'!$D$14 -> € | M16: ='1 General Information'!$D$14 -> € | N16: ='1 General Information'!$D$14 -> € | O16: ='1 General Information'!$D$14 -> € | P16: ='1 General Information'!$D$14 -> € | Q16: ='1 General Information'!$D$14 -> €
C17: ='3 Costs & Financing'!O8 -> 0 | D17: ='3 Costs & Financing'!O9 -> 0 | E17: ='3 Costs & Financing'!O10 -> 0 | F17: ='3 Costs & Financing'!O11 -> 0 | G17: ='3 Costs & Financing'!O12 -> 0 | H17: ='3 Costs & Financing'!O13 -> 0 | I17: =IF('3 Costs & Financing'!H37=0,('3 Costs & Financing'!J37*12),('3 Costs & Financing'!H37*12)) -> 8319.678841 | J17: ='2 Equipment & Assets'!H38 -> 7594.800499 | K17: ='3 Costs & Financing'!O14 -> 0 | L17: ='3 Costs & Financing'!O18 -> 840 | M17: ='3 Costs & Financing'!O19 -> 840 | N17: ='3 Costs & Financing'!O20 -> 840 | O17: ='3 Costs & Financing'!O21 -> 840 | P17: ='3 Costs & Financing'!O22 -> 840 | Q17: ='3 Costs & Financing'!O23 -> 840
